[Event "*** Titled Tuesday Blitz"]
[Site "Chess.com"]
[Date "2019.09.03"]
[Round "3"]
[White "1random"]
[Black "matiss90"]
[Result "0-1"]
[WhiteElo "2745"]
[BlackElo "2538"]
[TimeControl "180+2"]
[EndTime "15:39:38 PDT"]
[Termination "matiss90 won by checkmate"]

1. e4 {[%clk 0:03:01.8]} 1... c5 {[%clk 0:03:00.8]} 2. Nf3 {[%clk 0:02:58]} 2...
d6 {[%clk 0:03:01.5]} 3. c3 {[%clk 0:02:59.1]} 3... Nf6 {[%clk 0:03:00.8]} 4. h3
{[%clk 0:03:00.7]} 4... g6 {[%clk 0:03:01.8]} 5. Bd3 {[%clk 0:02:59.3]} 5... Bg7
{[%clk 0:03:02.7]} 6. Bc2 {[%clk 0:03:00.7]} 6... O-O {[%clk 0:03:03.9]} 7. O-O
{[%clk 0:03:02.5]} 7... Nc6 {[%clk 0:03:05]} 8. d4 {[%clk 0:03:04]} 8... cxd4
{[%clk 0:03:06.2]} 9. cxd4 {[%clk 0:03:05.9]} 9... Nb4 {[%clk 0:03:06.8]} 10.
Bb3 {[%clk 0:03:06.9]} 10... a5 {[%clk 0:03:00.7]} 11. Nc3 {[%clk 0:03:06.8]}
11... d5 {[%clk 0:02:52.2]} 12. e5 {[%clk 0:03:02.3]} 12... Ne4 {[%clk
0:02:52.8]} 13. Nxe4 {[%clk 0:02:46.5]} 13... dxe4 {[%clk 0:02:53.3]} 14. Ng5
{[%clk 0:02:48.2]} 14... Nc6 {[%clk 0:02:45.1]} 15. Be3 {[%clk 0:02:48.9]} 15...
Bf5 {[%clk 0:02:41.8]} 16. g4 {[%clk 0:02:49]} 16... Bc8 {[%clk 0:02:30.6]} 17.
Nxe4 {[%clk 0:02:40]} 17... Kh8 {[%clk 0:02:22.9]} 18. Ng5 {[%clk 0:02:24.6]}
18... Qe8 {[%clk 0:02:21.6]} 19. f4 {[%clk 0:02:19.9]} 19... f6 {[%clk
0:02:17.5]} 20. Ne6 {[%clk 0:01:58.6]} 20... Bxe6 {[%clk 0:02:18.1]} 21. Bxe6
{[%clk 0:02:00.5]} 21... Rd8 {[%clk 0:02:16.1]} 22. d5 {[%clk 0:01:18.1]} 22...
fxe5 {[%clk 0:02:12.2]} 23. f5 {[%clk 0:01:18.1]} 23... Nd4 {[%clk 0:02:06.5]}
24. Qd3 {[%clk 0:01:09.2]} 24... gxf5 {[%clk 0:02:04.5]} 25. Bxd4 {[%clk
0:01:01.2]} 25... exd4 {[%clk 0:02:04.9]} 26. Bxf5 {[%clk 0:00:48.1]} 26... Rxd5
{[%clk 0:01:40.7]} 27. Bxh7 {[%clk 0:00:46.6]} 27... Rd6 {[%clk 0:01:41.6]} 28.
Rxf8+ {[%clk 0:00:41.7]} 28... Qxf8 {[%clk 0:01:42.5]} 29. Rf1 {[%clk
0:00:42.4]} 29... Rf6 {[%clk 0:01:43.2]} 30. Rf5 {[%clk 0:00:31.5]} 30... Rxf5
{[%clk 0:01:37.9]} 31. Bxf5 {[%clk 0:00:33.4]} 31... Qf6 {[%clk 0:01:27.8]} 32.
Kg2 {[%clk 0:00:24.3]} 32... Qc6+ {[%clk 0:01:18.9]} 33. Be4 {[%clk 0:00:23.3]}
33... Qc1 {[%clk 0:01:19.8]} 34. Qe2 {[%clk 0:00:17.5]} 34... Be5 {[%clk
0:01:10]} 35. Qf2 {[%clk 0:00:16.9]} 35... Kg7 {[%clk 0:00:55.5]} 36. h4 {[%clk
0:00:11.6]} 36... b5 {[%clk 0:00:36.8]} 37. b3 {[%clk 0:00:12.8]} 37... a4
{[%clk 0:00:33.8]} 38. bxa4 {[%clk 0:00:14.7]} 38... bxa4 {[%clk 0:00:34.7]} 39.
g5 {[%clk 0:00:15.7]} 39... a3 {[%clk 0:00:29.8]} 40. Kh3 {[%clk 0:00:13.9]}
40... Qc8+ {[%clk 0:00:24.1]} 41. Bf5 {[%clk 0:00:11.9]} 41... Qc3+ {[%clk
0:00:23.2]} 42. Kg4 {[%clk 0:00:12.9]} 42... Qc1 {[%clk 0:00:21.2]} 43. h5
{[%clk 0:00:10]} 43... Qd1+ {[%clk 0:00:20.1]} 44. Kh4 {[%clk 0:00:08.2]} 44...
Qh1+ {[%clk 0:00:20.1]} 45. Bh3 {[%clk 0:00:05.9]} 45... Qe4+ {[%clk 0:00:17.3]}
46. Bg4 {[%clk 0:00:07.3]} 46... d3 {[%clk 0:00:17.6]} 47. h6+ {[%clk
0:00:07.2]} 47... Kg6 {[%clk 0:00:18.3]} 48. Qf8 {[%clk 0:00:07.4]} 48... Qh1+
{[%clk 0:00:17.9]} 49. Bh3 {[%clk 0:00:08.4]} 49... Qe1+ {[%clk 0:00:17.8]} 50.
Kg4 {[%clk 0:00:09.4]} 50... Qg3# {[%clk 0:00:18.5]} 0-1

[Event "*** Titled Tuesday Blitz"]
[Site "Chess.com"]
[Date "2019.09.03"]
[Round "3"]
[White "slowdgehammer"]
[Black "Shahinyan_ChessMood"]
[Result "0-1"]
[WhiteElo "2424"]
[BlackElo "2681"]
[TimeControl "180+2"]
[EndTime "15:39:43 PDT"]
[Termination "Shahinyan_ChessMood won by resignation"]

1. b3 {[%clk 0:03:01.9]} 1... e5 {[%clk 0:02:58.6]} 2. Bb2 {[%clk 0:03:02.1]}
2... Nc6 {[%clk 0:02:59.1]} 3. e3 {[%clk 0:03:03.1]} 3... d5 {[%clk 0:02:59.4]}
4. Bb5 {[%clk 0:03:03.7]} 4... Nf6 {[%clk 0:03:00.2]} 5. Bxe5 {[%clk 0:02:54.4]}
5... Be7 {[%clk 0:02:59.9]} 6. Nf3 {[%clk 0:02:50.9]} 6... O-O {[%clk
0:03:00.2]} 7. Bb2 {[%clk 0:02:51.7]} 7... Bg4 {[%clk 0:02:54.3]} 8. Be2 {[%clk
0:02:46.7]} 8... Bd6 {[%clk 0:02:54.7]} 9. Nd4 {[%clk 0:02:44]} 9... Bd7 {[%clk
0:02:54.4]} 10. Nxc6 {[%clk 0:02:42.5]} 10... bxc6 {[%clk 0:02:54.6]} 11. f4
{[%clk 0:02:24.3]} 11... Qe7 {[%clk 0:02:52.3]} 12. O-O {[%clk 0:02:22.4]} 12...
Rae8 {[%clk 0:02:53.2]} 13. Bf3 {[%clk 0:02:13.7]} 13... c5 {[%clk 0:02:49.3]}
14. Re1 {[%clk 0:01:05.6]} 14... Bxf4 {[%clk 0:02:41.3]} 15. Bxf6 {[%clk
0:00:49.9]} 15... Qxf6 {[%clk 0:02:29.5]} 16. Nc3 {[%clk 0:00:49.7]} 16... Be5
{[%clk 0:02:19.9]} 17. Nxd5 {[%clk 0:00:44]} 17... Qh6 {[%clk 0:02:13.1]} 18. g3
{[%clk 0:00:37.1]} 18... Bxa1 {[%clk 0:02:08.1]} 19. Qxa1 {[%clk 0:00:39]} 19...
c6 {[%clk 0:02:08]} 20. Nf4 {[%clk 0:00:37.7]} 20... Qd6 {[%clk 0:01:48.7]} 21.
Qc3 {[%clk 0:00:36.3]} 21... Re5 {[%clk 0:01:48.7]} 22. Nd3 {[%clk 0:00:33.4]}
22... Rg5 {[%clk 0:01:48.9]} 23. Bg2 {[%clk 0:00:20.3]} 23... h5 {[%clk
0:01:48.3]} 24. Qc4 {[%clk 0:00:18.7]} 24... g6 {[%clk 0:01:32.4]} 25. Rf1
{[%clk 0:00:19.8]} 25... Be6 {[%clk 0:01:32.6]} 26. Qf4 {[%clk 0:00:20.9]} 26...
Qe7 {[%clk 0:01:29.2]} 27. Bxc6 {[%clk 0:00:19.4]} 27... Rg4 {[%clk 0:01:25]}
28. Qf6 {[%clk 0:00:17.6]} 28... Qc7 {[%clk 0:01:25.2]} 29. Bg2 {[%clk
0:00:18.1]} 29... Rd8 {[%clk 0:01:06.4]} 30. Ne5 {[%clk 0:00:18.7]} 30... Rxd2
{[%clk 0:01:04.6]} 31. Nxg4 {[%clk 0:00:13.9]} 31... hxg4 {[%clk 0:01:06.5]} 32.
Rf2 {[%clk 0:00:12.7]} 32... Rd1+ {[%clk 0:00:58.8]} 33. Rf1 {[%clk 0:00:13.9]}
33... Qd6 {[%clk 0:00:57.3]} 34. Qf4 {[%clk 0:00:12]} 34... Qd2 {[%clk
0:00:55.4]} 35. Qb8+ {[%clk 0:00:07.4]} 35... Kh7 {[%clk 0:00:55.9]} 36. Qf4
{[%clk 0:00:06.4]} 36... Rxf1+ {[%clk 0:00:51.8]} 37. Bxf1 {[%clk 0:00:06.5]}
37... Qxc2 {[%clk 0:00:52.9]} 38. Bc4 {[%clk 0:00:06]} 38... Qb1+ {[%clk
0:00:50.5]} 39. Kf2 {[%clk 0:00:06.1]} 39... Qxa2+ {[%clk 0:00:49.9]} 40. Kg1
{[%clk 0:00:07.6]} 40... Qb1+ {[%clk 0:00:50.6]} 41. Kf2 {[%clk 0:00:07.7]}
41... Qc2+ {[%clk 0:00:49.4]} 42. Kg1 {[%clk 0:00:08.3]} 42... Bxc4 {[%clk
0:00:36.8]} 43. bxc4 {[%clk 0:00:09.1]} 43... Qd1+ {[%clk 0:00:30.7]} 44. Kf2
{[%clk 0:00:09.2]} 44... Qd2+ {[%clk 0:00:31.5]} 45. Kg1 {[%clk 0:00:10.1]}
45... Qd7 {[%clk 0:00:27.4]} 46. Qe5 {[%clk 0:00:09.7]} 46... Qd1+ {[%clk
0:00:25]} 47. Kf2 {[%clk 0:00:10.5]} 47... Qc2+ {[%clk 0:00:26.5]} 48. Kg1
{[%clk 0:00:11.8]} 48... Qxc4 {[%clk 0:00:27.9]} 49. Qe7 {[%clk 0:00:12]} 49...
a5 {[%clk 0:00:25.7]} 50. Qh4+ {[%clk 0:00:11.7]} 50... Kg7 {[%clk 0:00:26.6]}
51. Qe7 {[%clk 0:00:12.3]} 51... Qc1+ {[%clk 0:00:24.8]} 52. Kf2 {[%clk
0:00:13.1]} 52... Qb2+ {[%clk 0:00:25.8]} 53. Kg1 {[%clk 0:00:14.2]} 53... Qa1+
{[%clk 0:00:27.3]} 54. Kf2 {[%clk 0:00:15.3]} 54... Qf6+ {[%clk 0:00:28.2]} 0-1

[Event "*** Titled Tuesday Blitz"]
[Site "Chess.com"]
[Date "2019.09.03"]
[Round "3"]
[White "vinniethepooh"]
[Black "AllStarShark"]
[Result "1-0"]
[WhiteElo "2594"]
[BlackElo "2356"]
[TimeControl "180+2"]
[EndTime "15:39:43 PDT"]
[Termination "vinniethepooh won by resignation"]

1. d4 {[%clk 0:03:01.9]} 1... d5 {[%clk 0:03:00.5]} 2. c4 {[%clk 0:03:02.9]}
2... dxc4 {[%clk 0:03:02.4]} 3. Nf3 {[%clk 0:03:03.4]} 3... Nf6 {[%clk
0:03:03.5]} 4. e3 {[%clk 0:03:04.4]} 4... Bg4 {[%clk 0:03:04.6]} 5. Bxc4 {[%clk
0:03:04.9]} 5... e6 {[%clk 0:03:05.9]} 6. O-O {[%clk 0:03:02.5]} 6... Bd6 {[%clk
0:03:04.6]} 7. h3 {[%clk 0:03:02.4]} 7... Bh5 {[%clk 0:03:05.2]} 8. Be2 {[%clk
0:02:55.3]} 8... O-O {[%clk 0:03:05.4]} 9. Nc3 {[%clk 0:02:56.5]} 9... Nc6
{[%clk 0:03:05.6]} 10. a3 {[%clk 0:02:47.2]} 10... a6 {[%clk 0:03:05.6]} 11. b4
{[%clk 0:02:33.4]} 11... Qe7 {[%clk 0:03:00.3]} 12. e4 {[%clk 0:02:21.5]} 12...
Bxf3 {[%clk 0:02:14.5]} 13. Bxf3 {[%clk 0:02:23.4]} 13... Rad8 {[%clk
0:02:15.6]} 14. Be3 {[%clk 0:02:16.7]} 14... Rfe8 {[%clk 0:01:37]} 15. Qd2
{[%clk 0:02:08.3]} 15... h6 {[%clk 0:01:37]} 16. Rfd1 {[%clk 0:02:06.9]} 16...
e5 {[%clk 0:00:53.4]} 17. d5 {[%clk 0:01:48]} 17... Nd4 {[%clk 0:00:54.3]} 18.
Bxd4 {[%clk 0:01:49.4]} 18... exd4 {[%clk 0:00:55.8]} 19. Qxd4 {[%clk
0:01:51.2]} 19... Be5 {[%clk 0:00:52]} 20. Qe3 {[%clk 0:01:42.8]} 20... Bxc3
{[%clk 0:00:33.5]} 21. Qxc3 {[%clk 0:01:44.7]} 21... Nxe4 {[%clk 0:00:26.1]} 22.
Bxe4 {[%clk 0:01:33.5]} 22... Qxe4 {[%clk 0:00:28]} 23. Rac1 {[%clk 0:01:34.3]}
23... Re7 {[%clk 0:00:08.2]} 24. Re1 {[%clk 0:01:27.3]} 24... Qh4 {[%clk
0:00:08.3]} 25. Rxe7 {[%clk 0:01:22.6]} 25... Qxe7 {[%clk 0:00:10.2]} 26. Qxc7
{[%clk 0:01:23.9]} 26... Qxc7 {[%clk 0:00:08]} 27. Rxc7 {[%clk 0:01:25.8]} 27...
Rxd5 {[%clk 0:00:09.4]} 28. Rxb7 {[%clk 0:01:27.4]} 28... Rd3 {[%clk 0:00:08.1]}
29. a4 {[%clk 0:01:28.2]} 29... Ra3 {[%clk 0:00:06.2]} 30. a5 {[%clk 0:01:29.6]}
30... Rb3 {[%clk 0:00:07.3]} 31. Kf1 {[%clk 0:01:20.2]} 31... Rb2 {[%clk
0:00:07.7]} 32. g4 {[%clk 0:01:12.3]} 32... g6 {[%clk 0:00:07.9]} 33. Kg2 {[%clk
0:01:13.7]} 33... Kg7 {[%clk 0:00:09]} 34. Rb6 {[%clk 0:01:13]} 34... h5 {[%clk
0:00:09.1]} 35. g5 {[%clk 0:01:08.2]} 35... Rb3 {[%clk 0:00:08.2]} 36. h4 {[%clk
0:01:09.6]} 36... Kf8 {[%clk 0:00:09.1]} 37. f3 {[%clk 0:01:09]} 37... Ke7
{[%clk 0:00:09.1]} 38. Kg3 {[%clk 0:01:10.4]} 38... Ke8 {[%clk 0:00:08.9]} 39.
Kf4 {[%clk 0:01:09.4]} 39... Ke7 {[%clk 0:00:10]} 40. Ke4 {[%clk 0:01:06.7]}
40... Kd7 {[%clk 0:00:10.8]} 41. f4 {[%clk 0:00:58.7]} 41... Kc7 {[%clk
0:00:10.1]} 42. f5 {[%clk 0:00:58.1]} 42... Rh3 {[%clk 0:00:09]} 43. fxg6 {[%clk
0:00:23.2]} 43... Rxh4+ {[%clk 0:00:08.9]} 44. Kf5 {[%clk 0:00:24]} 44... fxg6+
{[%clk 0:00:09.4]} 45. Kxg6 {[%clk 0:00:25.9]} 45... Rh1 {[%clk 0:00:07.8]} 46.
Rxa6 {[%clk 0:00:22.3]} 46... h4 {[%clk 0:00:08.9]} 47. b5 {[%clk 0:00:20.8]}
47... h3 {[%clk 0:00:09.7]} 48. Ra7+ {[%clk 0:00:22.1]} 48... Kd6 {[%clk
0:00:09]} 49. Rh7 {[%clk 0:00:19.7]} 49... Kc5 {[%clk 0:00:09]} 50. b6 {[%clk
0:00:17.9]} 50... h2 {[%clk 0:00:09.4]} 51. b7 {[%clk 0:00:18.4]} 51... Rb1
{[%clk 0:00:10.1]} 52. a6 {[%clk 0:00:13.2]} 52... h1=Q {[%clk 0:00:06.3]} 53.
Rxh1 {[%clk 0:00:14.2]} 53... Rb6+ {[%clk 0:00:06.9]} 54. Kf5 {[%clk 0:00:14.4]}
54... Kd6 {[%clk 0:00:08]} 55. Rh8 {[%clk 0:00:13.9]} 55... Kc7 {[%clk
0:00:08.9]} 56. b8=Q+ {[%clk 0:00:15.2]} 1-0

[Event "*** Titled Tuesday Blitz"]
[Site "Chess.com"]
[Date "2019.09.03"]
[Round "3"]
[White "silverback96"]
[Black "Kazmin_Dmitrij"]
[Result "0-1"]
[WhiteElo "2010"]
[BlackElo "2311"]
[TimeControl "180+2"]
[EndTime "15:39:52 PDT"]
[Termination "Kazmin_Dmitrij won by resignation"]

1. e4 {[%clk 0:03:01.9]} 1... d6 {[%clk 0:03:00.6]} 2. d4 {[%clk 0:03:01.4]}
2... Nf6 {[%clk 0:03:01.8]} 3. Nc3 {[%clk 0:03:01.6]} 3... e5 {[%clk 0:03:02.9]}
4. Nf3 {[%clk 0:03:02.8]} 4... Nbd7 {[%clk 0:03:03.3]} 5. Bc4 {[%clk 0:03:03.7]}
5... Be7 {[%clk 0:03:04]} 6. O-O {[%clk 0:03:04.2]} 6... O-O {[%clk 0:03:05]} 7.
a4 {[%clk 0:03:05.8]} 7... c6 {[%clk 0:03:05.7]} 8. h3 {[%clk 0:03:05.5]} 8...
h6 {[%clk 0:03:06.2]} 9. Be3 {[%clk 0:03:03.4]} 9... Nh7 {[%clk 0:03:06.5]} 10.
Ne2 {[%clk 0:02:56.3]} 10... Ng5 {[%clk 0:03:05.9]} 11. Ng3 {[%clk 0:02:44.4]}
11... Nb6 {[%clk 0:02:48.9]} 12. Bb3 {[%clk 0:02:38.6]} 12... exd4 {[%clk
0:02:42.9]} 13. Nxd4 {[%clk 0:02:26.3]} 13... Ne6 {[%clk 0:02:26.3]} 14. Ndf5
{[%clk 0:02:22.7]} 14... Re8 {[%clk 0:02:12.4]} 15. a5 {[%clk 0:02:18.6]} 15...
Nd7 {[%clk 0:02:10.8]} 16. Bxe6 {[%clk 0:01:22.5]} 16... fxe6 {[%clk 0:02:09.9]}
17. Nxd6 {[%clk 0:01:24.3]} 17... Rf8 {[%clk 0:02:03.5]} 18. e5 {[%clk
0:01:16.2]} 18... Nxe5 {[%clk 0:01:59.2]} 19. Nxc8 {[%clk 0:01:17.1]} 19... Qxc8
{[%clk 0:01:51.4]} 20. Qe2 {[%clk 0:01:18]} 20... Nd7 {[%clk 0:01:32.1]} 21. Bd4
{[%clk 0:01:16.5]} 21... Nf6 {[%clk 0:01:31.3]} 22. Rfe1 {[%clk 0:01:14.6]}
22... Bd6 {[%clk 0:01:14.2]} 23. Qxe6+ {[%clk 0:01:08.5]} 23... Qxe6 {[%clk
0:01:09.5]} 24. Rxe6 {[%clk 0:01:10.4]} 24... Bxg3 {[%clk 0:01:08.6]} 25. fxg3
{[%clk 0:01:12.3]} 25... Nd5 {[%clk 0:01:00.3]} 26. c4 {[%clk 0:01:05]} 26...
Nb4 {[%clk 0:00:55.6]} 27. Bc5 {[%clk 0:00:55.6]} 27... Nc2 {[%clk 0:00:38.3]}
28. Rc1 {[%clk 0:00:56.5]} 28... Rf5 {[%clk 0:00:28.8]} 29. Bf2 {[%clk
0:00:31.7]} 29... Nb4 {[%clk 0:00:28.7]} 30. Re7 {[%clk 0:00:32.9]} 30... Rxf2
{[%clk 0:00:28]} 31. Kxf2 {[%clk 0:00:27.8]} 31... Nd3+ {[%clk 0:00:28.9]} 32.
Ke3 {[%clk 0:00:28.3]} 32... Nxc1 {[%clk 0:00:30]} 33. Rxb7 {[%clk 0:00:30.2]}
33... c5 {[%clk 0:00:24.7]} 34. Kd2 {[%clk 0:00:29.1]} 34... Na2 {[%clk
0:00:24.8]} 35. Rc7 {[%clk 0:00:23]} 35... Nb4 {[%clk 0:00:20.1]} 36. Rxc5
{[%clk 0:00:22.2]} 36... Na6 {[%clk 0:00:19.7]} 37. Rc6 {[%clk 0:00:21.2]} 37...
Nb4 {[%clk 0:00:20.7]} 38. Rc7 {[%clk 0:00:22.5]} 38... a6 {[%clk 0:00:18.8]}
39. Kc3 {[%clk 0:00:23.1]} 39... Rb8 {[%clk 0:00:19.8]} 40. Ra7 {[%clk
0:00:21.6]} 40... Kf8 {[%clk 0:00:17.2]} 41. b3 {[%clk 0:00:22.4]} 41... Kg8
{[%clk 0:00:15.2]} 42. g4 {[%clk 0:00:22.4]} 42... Kf8 {[%clk 0:00:16]} 43. g3
{[%clk 0:00:22.7]} 43... Kg8 {[%clk 0:00:17]} 44. h4 {[%clk 0:00:24.2]} 44...
Kf8 {[%clk 0:00:18.1]} 45. g5 {[%clk 0:00:24.2]} 45... hxg5 {[%clk 0:00:18.8]}
46. hxg5 {[%clk 0:00:26.1]} 46... g6 {[%clk 0:00:19.2]} 47. g4 {[%clk
0:00:24.4]} 47... Kg8 {[%clk 0:00:20.1]} 48. Rd7 {[%clk 0:00:13.3]} 48... Kh8
{[%clk 0:00:20.4]} 49. c5 {[%clk 0:00:14.1]} 49... Kg8 {[%clk 0:00:20]} 50. Rd6
{[%clk 0:00:15]} 50... Kf7 {[%clk 0:00:19.3]} 51. Rb6 {[%clk 0:00:15.2]} 51...
Nd5+ {[%clk 0:00:19]} 52. Kc4 {[%clk 0:00:16.5]} 52... Nxb6+ {[%clk 0:00:19.4]}
53. axb6 {[%clk 0:00:18.4]} 53... Ke7 {[%clk 0:00:19.8]} 54. c6 {[%clk
0:00:19.6]} 54... Rxb6 {[%clk 0:00:20.2]} 55. Kc5 {[%clk 0:00:19.8]} 55... Rxb3
{[%clk 0:00:20.4]} 56. c7 {[%clk 0:00:21.7]} 56... Rc3+ {[%clk 0:00:20.4]} 57.
Kb6 {[%clk 0:00:22.9]} 57... Kd7 {[%clk 0:00:21.6]} 58. Kxa6 {[%clk 0:00:24.1]}
58... Rxc7 {[%clk 0:00:22.3]} 59. Kb6 {[%clk 0:00:26]} 0-1

[Event "*** Titled Tuesday Blitz"]
[Site "Chess.com"]
[Date "2019.09.03"]
[Round "3"]
[White "yiy1156"]
[Black "mortngabriel"]
[Result "1-0"]
[WhiteElo "2560"]
[BlackElo "2315"]
[TimeControl "180+2"]
[EndTime "15:39:54 PDT"]
[Termination "yiy1156 won by resignation"]

1. e4 {[%clk 0:03:01.8]} 1... c5 {[%clk 0:03:00.8]} 2. Nf3 {[%clk 0:03:02.2]}
2... Nc6 {[%clk 0:03:01.6]} 3. d4 {[%clk 0:03:04.1]} 3... cxd4 {[%clk
0:03:03.5]} 4. Nxd4 {[%clk 0:03:05.9]} 4... g6 {[%clk 0:03:05.1]} 5. Nc3 {[%clk
0:03:06.8]} 5... Bg7 {[%clk 0:03:06.7]} 6. Be3 {[%clk 0:03:06.3]} 6... Nf6
{[%clk 0:03:08.1]} 7. Bc4 {[%clk 0:03:06.1]} 7... O-O {[%clk 0:03:09.2]} 8. Bb3
{[%clk 0:03:07.2]} 8... d6 {[%clk 0:03:10.7]} 9. f3 {[%clk 0:03:07.8]} 9... Bd7
{[%clk 0:03:12]} 10. Qd2 {[%clk 0:03:05.8]} 10... Rc8 {[%clk 0:03:13.6]} 11.
O-O-O {[%clk 0:03:06]} 11... Nxd4 {[%clk 0:03:15.1]} 12. Bxd4 {[%clk 0:03:07]}
12... b5 {[%clk 0:03:17]} 13. Nd5 {[%clk 0:03:05.2]} 13... Nxd5 {[%clk
0:03:17.5]} 14. Bxg7 {[%clk 0:03:05.3]} 14... Kxg7 {[%clk 0:03:19.4]} 15. exd5
{[%clk 0:03:04.9]} 15... a5 {[%clk 0:03:20.8]} 16. a3 {[%clk 0:03:05.5]} 16...
b4 {[%clk 0:03:20.3]} 17. axb4 {[%clk 0:03:05.2]} 17... axb4 {[%clk 0:03:22.2]}
18. Qxb4 {[%clk 0:03:05.9]} 18... Kg8 {[%clk 0:03:20.1]} 19. Rhe1 {[%clk
0:03:05.1]} 19... Rc5 {[%clk 0:03:19.5]} 20. Re3 {[%clk 0:03:00.4]} 20... Qa8
{[%clk 0:02:58.8]} 21. Bc4 {[%clk 0:02:59.4]} 21... Rb8 {[%clk 0:02:25.5]} 22.
Ra3 {[%clk 0:02:54.6]} 22... Rxb4 {[%clk 0:02:25.6]} 23. Rxa8+ {[%clk
0:02:55.1]} 23... Kg7 {[%clk 0:02:27.5]} 24. b3 {[%clk 0:02:55.9]} 24... Bb5
{[%clk 0:02:24.1]} 25. Rb8 {[%clk 0:02:31.9]} 25... g5 {[%clk 0:01:52.1]} 26. c3
{[%clk 0:02:00.2]} 26... Rbxc4 {[%clk 0:01:50]} 27. bxc4 {[%clk 0:02:00.3]}
27... Bxc4 {[%clk 0:01:51.9]} 28. Rb7 {[%clk 0:01:57.5]} 28... Kf6 {[%clk
0:01:47]} 29. Re1 {[%clk 0:01:56]} 29... Bxd5 {[%clk 0:01:46.8]} 30. Rbxe7
{[%clk 0:01:56]} 30... Be6 {[%clk 0:01:43.3]} 31. Ra7 {[%clk 0:01:56.7]} 31...
Rxc3+ {[%clk 0:01:45.2]} 32. Kd2 {[%clk 0:01:57.9]} 32... Rb3 {[%clk 0:01:44.8]}
33. Kc2 {[%clk 0:01:59.1]} 33... Rb5 {[%clk 0:01:41.9]} 34. Ra6 {[%clk
0:01:41.8]} 34... d5 {[%clk 0:01:37.3]} 35. g3 {[%clk 0:01:38.1]} 35... h5
{[%clk 0:01:30.3]} 36. Ra4 {[%clk 0:01:31.5]} 36... Rc5+ {[%clk 0:01:25.2]} 37.
Kd2 {[%clk 0:01:28.5]} 37... Rb5 {[%clk 0:01:25.2]} 38. Kd3 {[%clk 0:01:28.7]}
38... Rb3+ {[%clk 0:01:25.2]} 39. Kd4 {[%clk 0:01:11]} 39... Rxf3 {[%clk
0:01:25.4]} 40. Rea1 {[%clk 0:01:11.9]} 40... h4 {[%clk 0:01:10.5]} 41. R1a3
{[%clk 0:01:05.7]} 41... Rf2 {[%clk 0:01:06]} 42. Ra2 {[%clk 0:01:06.3]} 42...
Rf1 {[%clk 0:00:50.7]} 43. Ra1 {[%clk 0:01:06.4]} 43... Rf5 {[%clk 0:00:49.7]}
44. R1a2 {[%clk 0:00:56.1]} 44... Kg6 {[%clk 0:00:39.2]} 45. gxh4 {[%clk
0:00:53.9]} 45... gxh4 {[%clk 0:00:30.9]} 46. Rb4 {[%clk 0:00:44.6]} 46... h3
{[%clk 0:00:25.7]} 47. Rd2 {[%clk 0:00:44.9]} 47... Kg5 {[%clk 0:00:24.7]} 48.
Kc5 {[%clk 0:00:44]} 48... Rf4 {[%clk 0:00:23]} 49. Rxf4 {[%clk 0:00:33]} 49...
Kxf4 {[%clk 0:00:24]} 50. Kd4 {[%clk 0:00:34.9]} 50... Kf3 {[%clk 0:00:24.3]}
51. Rb2 {[%clk 0:00:33.2]} 51... Bg4 {[%clk 0:00:16.9]} 52. Kxd5 {[%clk
0:00:31.1]} 52... Ke3 {[%clk 0:00:17.3]} 53. Ke5 {[%clk 0:00:30.9]} 53... Bf3
{[%clk 0:00:16.5]} 54. Rb3+ {[%clk 0:00:30.2]} 54... Kf2 {[%clk 0:00:16.9]} 55.
Kf4 {[%clk 0:00:31.7]} 55... Bg2 {[%clk 0:00:16.4]} 56. Rb2+ {[%clk 0:00:31.5]}
56... Kg1 {[%clk 0:00:17.2]} 57. Kg3 {[%clk 0:00:30.7]} 57... f5 {[%clk
0:00:17.6]} 58. Rf2 {[%clk 0:00:28.4]} 58... f4+ {[%clk 0:00:16.2]} 59. Rxf4
{[%clk 0:00:28.5]} 59... Kh1 {[%clk 0:00:13.5]} 60. Ra4 {[%clk 0:00:28.3]} 60...
Kg1 {[%clk 0:00:14.5]} 61. Ra1+ {[%clk 0:00:29.3]} 61... Bf1 {[%clk 0:00:16.4]}
62. Rb1 {[%clk 0:00:25.9]} 1-0